[Event "Titled Tuesday Blitz January 31 Early 2023"]
[White "Belozerov, Andrei"]
[Black "Mikaelyan, Arman"]
[WhiteFideId "4120213"]
[BlackFideId "13304852"]
[WhiteElo "2461"]
[BlackElo "2523"]
[Result "1/2-1/2"]
[Round "10"]
[TimeControl "180+2"]
[Date "2023.01.31"]
[WhiteClock "0:00:17"]
[BlackClock "0:00:13"]

1. e4 {[%clk 0:03:00]}  c5 {[%clk 0:02:55]} 2. Nf3 {[%clk 0:02:59]}  a6 {[%clk 0:02:52]} 3. g3 {[%clk 0:02:58]}  g6 {[%clk 0:02:50]} 4. Bg2 {[%clk 0:02:52]}  Bg7 {[%clk 0:02:51]} 5. O-O {[%clk 0:02:52]}  Nc6 {[%clk 0:02:51]} 6. c3 {[%clk 0:02:51]}  d6 {[%clk 0:02:43]} 7. d4 {[%clk 0:02:49]}  Bg4 {[%clk 0:02:39]} 8. d5 {[%clk 0:02:45]}  Ne5 {[%clk 0:02:36]} 9. Nbd2 {[%clk 0:02:43]}  Nf6 {[%clk 0:02:25]} 10. h3 {[%clk 0:02:39]}  Nxf3+ {[%clk 0:02:21]} 11. Nxf3 {[%clk 0:02:38]}  Bxf3 {[%clk 0:02:21]} 12. Qxf3 {[%clk 0:02:28]}  O-O {[%clk 0:02:21]} 13. Qe2 {[%clk 0:02:18]}  Nd7 {[%clk 0:02:20]} 14. Bg5 {[%clk 0:02:14]}  h6 {[%clk 0:02:19]} 15. Be3 {[%clk 0:02:14]}  b5 {[%clk 0:02:20]} 16. f4 {[%clk 0:02:09]}  Rb8 {[%clk 0:02:20]} 17. Rad1 {[%clk 0:02:00]}  b4 {[%clk 0:02:20]} 18. c4 {[%clk 0:01:59]}  b3 {[%clk 0:02:13]} 19. a3 {[%clk 0:01:58]}  Nb6 {[%clk 0:02:13]} 20. e5 {[%clk 0:01:54]}  Na4 {[%clk 0:02:00]} 21. Be4 {[%clk 0:01:51]}  dxe5 {[%clk 0:01:46]} 22. f5 {[%clk 0:01:50]}  g5 {[%clk 0:01:42]} 23. f6 {[%clk 0:01:46]}  exf6 {[%clk 0:01:38]} 24. d6 {[%clk 0:01:40]}  Re8 {[%clk 0:01:29]} 25. Rd5 {[%clk 0:01:21]}  Re6 {[%clk 0:01:25]} 26. d7 {[%clk 0:01:20]}  Nb6 {[%clk 0:01:23]} 27. Rd2 {[%clk 0:01:11]}  Re7 {[%clk 0:00:57]} 28. Rfd1 {[%clk 0:01:10]}  Nxd7 {[%clk 0:00:46]} 29. Bf5 {[%clk 0:01:02]}  e4 {[%clk 0:00:21]} 30. Bxd7 {[%clk 0:00:57]}  Qc7 {[%clk 0:00:20]} 31. Qf2 {[%clk 0:00:35]}  f5 {[%clk 0:00:20]} 32. Bxf5 {[%clk 0:00:34]}  Rbe8 {[%clk 0:00:20]} 33. Rd7 {[%clk 0:00:33]}  Qe5 {[%clk 0:00:20]} 34. Rxe7 {[%clk 0:00:31]}  Qxe7 {[%clk 0:00:21]} 35. Rd7 {[%clk 0:00:30]}  Qe5 {[%clk 0:00:20]} 36. Rd2 {[%clk 0:00:21]}  Bf6 {[%clk 0:00:17]} 37. g4 {[%clk 0:00:21]}  Kg7 {[%clk 0:00:17]} 38. Kg2 {[%clk 0:00:21]}  a5 {[%clk 0:00:16]} 39. Qg3 {[%clk 0:00:21]}  Qe7 {[%clk 0:00:14]} 40. Qf2 {[%clk 0:00:18]}  a4 {[%clk 0:00:14]} 41. Qg3 {[%clk 0:00:18]}  Be5 {[%clk 0:00:14]} 42. Qf2 {[%clk 0:00:18]}  Bf6 {[%clk 0:00:15]} 43. Qe2 {[%clk 0:00:17]}  Qe5 {[%clk 0:00:14]} 44. Qf2 {[%clk 0:00:17]}  Qe7 {[%clk 0:00:13]} 1/2-1/2


[Site "https://www.chess.com"]

[Event "Titled Tuesday Blitz January 31 Early 2023"]
[White "Antonica, Dragos-Andrei"]
[Black "Azarov, Sergei"]
[WhiteFideId "1246372"]
[BlackFideId "13501470"]
[WhiteElo "2373"]
[BlackElo "2582"]
[Result "0-1"]
[Round "10"]
[TimeControl "180+2"]
[Date "2023.01.31"]
[WhiteClock "0:00:02"]
[BlackClock "0:00:03"]

1. d4 {[%clk 0:02:56]}  Nf6 {[%clk 0:02:59]} 2. Nf3 {[%clk 0:02:56]}  e6 {[%clk 0:02:58]} 3. c4 {[%clk 0:02:54]}  b6 {[%clk 0:02:58]} 4. Nbd2 {[%clk 0:02:53]}  Bb7 {[%clk 0:02:58]} 5. e3 {[%clk 0:02:54]}  d5 {[%clk 0:02:56]} 6. b3 {[%clk 0:02:53]}  dxc4 {[%clk 0:02:54]} 7. Bxc4 {[%clk 0:02:51]}  Nbd7 {[%clk 0:02:54]} 8. O-O {[%clk 0:02:50]}  a6 {[%clk 0:02:54]} 9. Bb2 {[%clk 0:02:47]}  Bd6 {[%clk 0:02:52]} 10. Bd3 {[%clk 0:02:30]}  O-O {[%clk 0:02:45]} 11. Rc1 {[%clk 0:02:28]}  c5 {[%clk 0:02:44]} 12. dxc5 {[%clk 0:02:11]}  Nxc5 {[%clk 0:02:37]} 13. Bb1 {[%clk 0:02:11]}  Be7 {[%clk 0:02:28]} 14. Nc4 {[%clk 0:02:08]}  b5 {[%clk 0:02:20]} 15. Nce5 {[%clk 0:02:06]}  Rc8 {[%clk 0:02:00]} 16. Nd4 {[%clk 0:01:57]}  Qd5 {[%clk 0:01:51]} 17. Ndf3 {[%clk 0:01:43]}  Nce4 {[%clk 0:01:36]} 18. Qe2 {[%clk 0:01:40]}  b4 {[%clk 0:01:20]} 19. Rfd1 {[%clk 0:01:24]}  Rxc1 {[%clk 0:01:19]} 20. Rxc1 {[%clk 0:01:25]}  Rd8 {[%clk 0:01:10]} 21. Bd3 {[%clk 0:01:22]}  h6 {[%clk 0:00:44]} 22. h3 {[%clk 0:01:18]}  Qa5 {[%clk 0:00:31]} 23. Bd4 {[%clk 0:01:16]}  Nc3 {[%clk 0:00:30]} 24. Bxc3 {[%clk 0:01:09]}  bxc3 {[%clk 0:00:30]} 25. Nc4 {[%clk 0:01:10]}  Qd5 {[%clk 0:00:26]} 26. Bc2 {[%clk 0:00:43]}  Qh5 {[%clk 0:00:22]} 27. Rd1 {[%clk 0:00:40]}  Ne4 {[%clk 0:00:16]} 28. Rxd8+ {[%clk 0:00:39]}  Bxd8 {[%clk 0:00:16]} 29. Nd4 {[%clk 0:00:38]}  Qd5 {[%clk 0:00:12]} 30. f3 {[%clk 0:00:37]}  Nd6 {[%clk 0:00:10]} 31. Qd3 {[%clk 0:00:30]}  Bf6 {[%clk 0:00:06]} 32. Nxd6 {[%clk 0:00:25]}  Qxd6 {[%clk 0:00:07]} 33. Qxc3 {[%clk 0:00:21]}  g6 {[%clk 0:00:07]} 34. Qc4 {[%clk 0:00:20]}  Kg7 {[%clk 0:00:07]} 35. Kf2 {[%clk 0:00:17]}  Bh4+ {[%clk 0:00:06]} 36. Kg1 {[%clk 0:00:16]}  Bf6 {[%clk 0:00:06]} 37. Bd3 {[%clk 0:00:13]}  a5 {[%clk 0:00:06]} 38. Ne2 {[%clk 0:00:12]}  Qe5 {[%clk 0:00:05]} 39. e4 {[%clk 0:00:10]}  Qa1+ {[%clk 0:00:04]} 40. Kh2 {[%clk 0:00:11]}  h5 {[%clk 0:00:03]} 41. f4 {[%clk 0:00:12]}  h4 {[%clk 0:00:03]} 42. e5 {[%clk 0:00:12]}  Be7 {[%clk 0:00:03]} 43. Be4 {[%clk 0:00:08]}  Bxe4 {[%clk 0:00:01]} 44. Qxe4 {[%clk 0:00:09]}  Qe1 {[%clk 0:00:02]} 45. Qf3 {[%clk 0:00:09]}  Bc5 {[%clk 0:00:01]} 46. a3 {[%clk 0:00:06]}  Bf2 {[%clk 0:00:02]} 47. f5 {[%clk 0:00:04]}  exf5 {[%clk 0:00:02]} 48. b4 {[%clk 0:00:03]}  g5 {[%clk 0:00:02]} 49. b5 {[%clk 0:00:03]}  f4 {[%clk 0:00:03]} 50. Nxf4 {[%clk 0:00:02]}  Bg3+ {[%clk 0:00:03]} 51. Qxg3 {[%clk 0:00:02]}  hxg3# {[%clk 0:00:03]} 0-1


[Site "https://www.chess.com"]

[Event "Titled Tuesday Blitz January 31 Early 2023"]
[White "Jakubowski, Krzysztof"]
[Black "Hambleton, Aman"]
[WhiteFideId "1112848"]
[BlackFideId "2606577"]
[WhiteElo "2486"]
[BlackElo "2420"]
[Result "1-0"]
[Round "10"]
[TimeControl "180+2"]
[Date "2023.01.31"]
[WhiteClock "0:00:04"]
[BlackClock "0:00:04"]

1. e4 {[%clk 0:02:57]}  c5 {[%clk 0:02:58]} 2. Nf3 {[%clk 0:02:57]}  e6 {[%clk 0:02:58]} 3. d4 {[%clk 0:02:57]}  cxd4 {[%clk 0:02:59]} 4. Nxd4 {[%clk 0:02:57]}  Nc6 {[%clk 0:03:00]} 5. Nc3 {[%clk 0:02:57]}  Qc7 {[%clk 0:03:00]} 6. Be3 {[%clk 0:02:56]}  a6 {[%clk 0:03:00]} 7. Qf3 {[%clk 0:02:55]}  b5 {[%clk 0:02:56]} 8. Nxc6 {[%clk 0:02:50]}  Qxc6 {[%clk 0:02:53]} 9. O-O-O {[%clk 0:02:46]}  Bb7 {[%clk 0:02:53]} 10. Qg3 {[%clk 0:02:25]}  b4 {[%clk 0:02:07]} 11. Nd5 {[%clk 0:02:20]}  exd5 {[%clk 0:01:51]} 12. exd5 {[%clk 0:02:20]}  Qg6 {[%clk 0:01:52]} 13. Qe5+ {[%clk 0:02:06]}  Be7 {[%clk 0:01:34]} 14. d6 {[%clk 0:02:01]}  Qf6 {[%clk 0:00:44]} 15. Qc5 {[%clk 0:01:53]}  Bd8 {[%clk 0:00:39]} 16. Qxb4 {[%clk 0:01:46]}  Bc6 {[%clk 0:00:39]} 17. Bd4 {[%clk 0:01:28]}  Qg5+ {[%clk 0:00:35]} 18. Kb1 {[%clk 0:01:23]}  Nf6 {[%clk 0:00:27]} 19. Re1+ {[%clk 0:01:18]}  Kf8 {[%clk 0:00:27]} 20. h4 {[%clk 0:01:04]}  Qa5 {[%clk 0:00:16]} 21. Qxa5 {[%clk 0:00:42]}  Bxa5 {[%clk 0:00:17]} 22. c3 {[%clk 0:00:20]}  h5 {[%clk 0:00:15]} 23. Rh3 {[%clk 0:00:18]}  Rh6 {[%clk 0:00:05]} 24. b4 {[%clk 0:00:15]}  Bd8 {[%clk 0:00:04]} 25. Rhe3 {[%clk 0:00:15]}  Kg8 {[%clk 0:00:02]} 26. Bd3 {[%clk 0:00:13]}  g6 {[%clk 0:00:01]} 27. Re8+ {[%clk 0:00:11]}  Kg7 {[%clk 0:00:01]} 28. R1e7 {[%clk 0:00:03]}  Rh8 {[%clk 0:00:01]} 29. Rxh8 {[%clk 0:00:03]}  Kxh8 {[%clk 0:00:02]} 30. Bxf6+ {[%clk 0:00:03]}  Kg8 {[%clk 0:00:03]} 31. Re8+ {[%clk 0:00:04]}  Kh7 {[%clk 0:00:04]} 32. Rh8# {[%clk 0:00:04]} 1-0


[Site "https://www.chess.com"]

[Event "Titled Tuesday Blitz January 31 Early 2023"]
[White "Bruzon Batista, Lazaro"]
[Black "Sattarov, Bobir"]
[WhiteFideId "3503739"]
[BlackFideId "14203081"]
[WhiteElo "2611"]
[BlackElo "2366"]
[Result "0-1"]
[Round "10"]
[TimeControl "180+2"]
[Date "2023.01.31"]
[WhiteClock "0:00:02"]
[BlackClock "0:00:24"]

1. d4 {[%clk 0:03:00]}  Nf6 {[%clk 0:03:00]} 2. c4 {[%clk 0:02:59]}  e6 {[%clk 0:03:00]} 3. g3 {[%clk 0:02:59]}  d5 {[%clk 0:02:59]} 4. Bg2 {[%clk 0:02:59]}  dxc4 {[%clk 0:02:58]} 5. Qa4+ {[%clk 0:02:59]}  Nbd7 {[%clk 0:02:58]} 6. Qxc4 {[%clk 0:02:58]}  a6 {[%clk 0:02:57]} 7. Qb3 {[%clk 0:02:45]}  c5 {[%clk 0:02:54]} 8. Nf3 {[%clk 0:02:45]}  cxd4 {[%clk 0:02:52]} 9. Nxd4 {[%clk 0:02:44]}  Nc5 {[%clk 0:02:51]} 10. Qe3 {[%clk 0:02:44]}  Nd5 {[%clk 0:02:48]} 11. Qd2 {[%clk 0:02:44]}  Be7 {[%clk 0:02:42]} 12. O-O {[%clk 0:02:43]}  O-O {[%clk 0:02:41]} 13. Nc3 {[%clk 0:02:42]}  Nxc3 {[%clk 0:02:28]} 14. Qxc3 {[%clk 0:02:42]}  Bd7 {[%clk 0:02:28]} 15. Be3 {[%clk 0:02:35]}  Rc8 {[%clk 0:02:26]} 16. Rfd1 {[%clk 0:02:29]}  Qc7 {[%clk 0:01:56]} 17. b4 {[%clk 0:02:05]}  Na4 {[%clk 0:01:52]} 18. Qxc7 {[%clk 0:02:04]}  Rxc7 {[%clk 0:01:53]} 19. Bf4 {[%clk 0:02:04]}  Rc4 {[%clk 0:01:44]} 20. Nf5 {[%clk 0:01:23]}  Bf6 {[%clk 0:01:28]} 21. Rac1 {[%clk 0:00:37]}  Rxc1 {[%clk 0:00:45]} 22. Bxc1 {[%clk 0:00:35]}  Bb5 {[%clk 0:00:39]} 23. Nd6 {[%clk 0:00:25]}  Rd8 {[%clk 0:00:38]} 24. Rd2 {[%clk 0:00:14]}  Bc3 {[%clk 0:00:36]} 25. Rd1 {[%clk 0:00:02]}  Bxe2 {[%clk 0:00:24]} 0-1


[Site "https://www.chess.com"]

[Event "Titled Tuesday Blitz January 31 Early 2023"]
[White "Yuan, Qingyu"]
[Black "Csonka, Balazs"]
[WhiteFideId "8609772"]
[BlackFideId "742910"]
[WhiteElo "2373"]
[BlackElo "2496"]
[Result "0-1"]
[Round "10"]
[TimeControl "180+2"]
[Date "2023.01.31"]
[WhiteClock "0:00:05"]
[BlackClock "0:00:03"]

1. e4 {[%clk 0:03:00]}  c5 {[%clk 0:02:57]} 2. Nf3 {[%clk 0:03:01]}  e6 {[%clk 0:02:55]} 3. c3 {[%clk 0:03:01]}  Nf6 {[%clk 0:02:54]} 4. e5 {[%clk 0:03:01]}  Nd5 {[%clk 0:02:54]} 5. g3 {[%clk 0:03:02]}  d6 {[%clk 0:02:53]} 6. exd6 {[%clk 0:03:02]}  Bxd6 {[%clk 0:02:51]} 7. Bg2 {[%clk 0:03:03]}  O-O {[%clk 0:02:50]} 8. O-O {[%clk 0:03:03]}  Nc6 {[%clk 0:02:50]} 9. d4 {[%clk 0:03:04]}  cxd4 {[%clk 0:02:46]} 10. Nxd4 {[%clk 0:03:05]}  Nxd4 {[%clk 0:02:38]} 11. Qxd4 {[%clk 0:03:06]}  Qc7 {[%clk 0:02:35]} 12. c4 {[%clk 0:03:05]}  Be5 {[%clk 0:02:23]} 13. Qe4 {[%clk 0:02:45]}  Nf6 {[%clk 0:02:01]} 14. Qe2 {[%clk 0:02:44]}  Bd7 {[%clk 0:01:58]} 15. Nc3 {[%clk 0:02:39]}  Bxc3 {[%clk 0:01:48]} 16. bxc3 {[%clk 0:02:39]}  Bc6 {[%clk 0:01:48]} 17. Bf4 {[%clk 0:02:36]}  Qc8 {[%clk 0:01:48]} 18. Be5 {[%clk 0:02:15]}  Bxg2 {[%clk 0:01:45]} 19. Bxf6 {[%clk 0:02:07]}  gxf6 {[%clk 0:01:36]} 20. Kxg2 {[%clk 0:02:00]}  Qc6+ {[%clk 0:01:31]} 21. Kg1 {[%clk 0:01:59]}  Rac8 {[%clk 0:01:28]} 22. Qg4+ {[%clk 0:01:51]}  Kh8 {[%clk 0:01:25]} 23. Qh4 {[%clk 0:01:52]}  Kg7 {[%clk 0:01:12]} 24. Rad1 {[%clk 0:01:20]}  Qxc4 {[%clk 0:00:46]} 25. Rd4 {[%clk 0:01:20]}  Qxc3 {[%clk 0:00:44]} 26. Rfd1 {[%clk 0:01:17]}  h6 {[%clk 0:00:24]} 27. R1d3 {[%clk 0:00:54]}  Qc1+ {[%clk 0:00:23]} 28. Kg2 {[%clk 0:00:54]}  f5 {[%clk 0:00:23]} 29. Rd7 {[%clk 0:00:41]}  Rc7 {[%clk 0:00:17]} 30. Qd4+ {[%clk 0:00:39]}  Kg6 {[%clk 0:00:13]} 31. Rd6 {[%clk 0:00:34]}  Qc4 {[%clk 0:00:09]} 32. Qxa7 {[%clk 0:00:30]}  Qe4+ {[%clk 0:00:08]} 33. Kh3 {[%clk 0:00:25]}  Qg4+ {[%clk 0:00:08]} 34. Kg2 {[%clk 0:00:26]}  Qe4+ {[%clk 0:00:09]} 35. Kh3 {[%clk 0:00:21]}  Rc1 {[%clk 0:00:09]} 36. R6d4 {[%clk 0:00:15]}  Qh1 {[%clk 0:00:05]} 37. Qa3 {[%clk 0:00:09]}  Rg1 {[%clk 0:00:04]} 38. g4 {[%clk 0:00:04]}  Qg2+ {[%clk 0:00:04]} 39. Kh4 {[%clk 0:00:04]}  Qxf2+ {[%clk 0:00:04]} 40. Kh3 {[%clk 0:00:05]}  Qg2+ {[%clk 0:00:04]} 41. Kh4 {[%clk 0:00:05]}  Qxh2+ {[%clk 0:00:04]} 42. Rh3 {[%clk 0:00:06]}  Qf2+ {[%clk 0:00:04]} 43. Rg3 {[%clk 0:00:06]}  Rxg3 {[%clk 0:00:03]} 44. Qxg3 {[%clk 0:00:06]}  Qxd4 {[%clk 0:00:03]} 45. Kh3 {[%clk 0:00:05]}  Qxg4+ {[%clk 0:00:03]} 0-1


[Site "https://www.chess.com"]

[Event "Titled Tuesday Blitz January 31 Early 2023"]
[White "Samant Aditya S"]
[Black "Tactrics"]
[WhiteFideId "35080580"]
[WhiteElo "2501"]
[BlackElo "2800"]
[Result "1-0"]
[Round "10"]
[TimeControl "180+2"]
[Date "2023.01.31"]
[WhiteClock "0:00:04"]
[BlackClock "0:00:01"]

1. e4 {[%clk 0:03:00]}  e6 {[%clk 0:02:59]} 2. d4 {[%clk 0:03:00]}  d5 {[%clk 0:03:00]} 3. Nd2 {[%clk 0:03:00]}  a6 {[%clk 0:03:00]} 4. Ngf3 {[%clk 0:02:59]}  Nf6 {[%clk 0:03:01]} 5. e5 {[%clk 0:03:00]}  Nfd7 {[%clk 0:03:01]} 6. Bd3 {[%clk 0:03:00]}  c5 {[%clk 0:03:02]} 7. c3 {[%clk 0:03:01]}  Nc6 {[%clk 0:03:02]} 8. O-O {[%clk 0:03:00]}  g5 {[%clk 0:03:03]} 9. Nb3 {[%clk 0:01:46]}  h6 {[%clk 0:03:02]} 10. Be2 {[%clk 0:01:25]}  b6 {[%clk 0:02:57]} 11. Be3 {[%clk 0:01:24]}  a5 {[%clk 0:02:52]} 12. a4 {[%clk 0:01:21]}  Ba6 {[%clk 0:02:50]} 13. Bxa6 {[%clk 0:01:09]}  Rxa6 {[%clk 0:02:51]} 14. Qe2 {[%clk 0:01:09]}  Ra8 {[%clk 0:02:50]} 15. Nc1 {[%clk 0:00:58]}  f5 {[%clk 0:02:39]} 16. exf6 {[%clk 0:00:58]}  Qxf6 {[%clk 0:02:39]} 17. Nd3 {[%clk 0:00:56]}  c4 {[%clk 0:02:36]} 18. Nde5 {[%clk 0:00:53]}  Ndxe5 {[%clk 0:02:34]} 19. Nxe5 {[%clk 0:00:53]}  Nxe5 {[%clk 0:02:23]} 20. dxe5 {[%clk 0:00:54]}  Qg6 {[%clk 0:02:21]} 21. f4 {[%clk 0:00:34]}  gxf4 {[%clk 0:01:52]} 22. Rxf4 {[%clk 0:00:33]}  Be7 {[%clk 0:01:50]} 23. Bxb6 {[%clk 0:00:27]}  Kd7 {[%clk 0:01:43]} 24. Bd4 {[%clk 0:00:22]}  Rab8 {[%clk 0:01:39]} 25. Raf1 {[%clk 0:00:19]}  h5 {[%clk 0:01:26]} 26. Rf7 {[%clk 0:00:18]}  Rhf8 {[%clk 0:01:24]} 27. Rxf8 {[%clk 0:00:17]}  Rxf8 {[%clk 0:01:21]} 28. Rxf8 {[%clk 0:00:17]}  Bxf8 {[%clk 0:01:22]} 29. Kf2 {[%clk 0:00:17]}  Bh6 {[%clk 0:01:17]} 30. g3 {[%clk 0:00:15]}  Qf5+ {[%clk 0:01:09]} 31. Kg2 {[%clk 0:00:15]}  Bc1 {[%clk 0:01:06]} 32. b3 {[%clk 0:00:14]}  cxb3 {[%clk 0:00:48]} 33. Qb5+ {[%clk 0:00:15]}  Ke7 {[%clk 0:00:49]} 34. Qb7+ {[%clk 0:00:13]}  Kf8 {[%clk 0:00:46]} 35. Qxb3 {[%clk 0:00:10]}  Qe4+ {[%clk 0:00:46]} 36. Kh3 {[%clk 0:00:09]}  Qe2 {[%clk 0:00:37]} 37. Qb8+ {[%clk 0:00:06]}  Kg7 {[%clk 0:00:37]} 38. Qc7+ {[%clk 0:00:04]}  Kg6 {[%clk 0:00:35]} 39. Qe7 {[%clk 0:00:05]}  Qg4+ {[%clk 0:00:14]} 40. Kg2 {[%clk 0:00:05]}  Qe2+ {[%clk 0:00:14]} 41. Kh3 {[%clk 0:00:05]}  Qg4+ {[%clk 0:00:03]} 42. Kg2 {[%clk 0:00:06]}  Bg5 {[%clk 0:00:03]} 43. Qe8+ {[%clk 0:00:06]}  Kf5 {[%clk 0:00:04]} 44. Qf7+ {[%clk 0:00:05]}  Ke4 {[%clk 0:00:04]} 45. Qf1 {[%clk 0:00:06]}  Bd2 {[%clk 0:00:01]} 46. Qb1# {[%clk 0:00:04]} 1-0


[Site "https://www.chess.com"]

[Event "Titled Tuesday Blitz January 31 Early 2023"]
[White "Cunha, Lucas Aguiar"]
[Black "Avila Pavas, Santiago"]
[WhiteFideId "2125404"]
[BlackFideId "4437128"]
[WhiteElo "2309"]
[BlackElo "2522"]
[Result "0-1"]
[Round "10"]
[TimeControl "180+2"]
[Date "2023.01.31"]
[WhiteClock "0:00:02"]
[BlackClock "0:00:10"]

1. e4 {[%clk 0:03:00]}  Nf6 {[%clk 0:03:00]} 2. e5 {[%clk 0:03:00]}  Nd5 {[%clk 0:03:01]} 3. d4 {[%clk 0:03:01]}  d6 {[%clk 0:03:01]} 4. Nf3 {[%clk 0:03:02]}  g6 {[%clk 0:03:01]} 5. Bc4 {[%clk 0:03:01]}  Nb6 {[%clk 0:03:01]} 6. Bb3 {[%clk 0:03:02]}  Bg7 {[%clk 0:03:02]} 7. Ng5 {[%clk 0:03:03]}  e6 {[%clk 0:03:01]} 8. Qf3 {[%clk 0:03:03]}  Qe7 {[%clk 0:03:02]} 9. Ne4 {[%clk 0:03:01]}  dxe5 {[%clk 0:03:03]} 10. Bg5 {[%clk 0:03:00]}  Qb4+ {[%clk 0:03:03]} 11. c3 {[%clk 0:03:00]}  Qa5 {[%clk 0:03:04]} 12. Nf6+ {[%clk 0:02:44]}  Kf8 {[%clk 0:03:04]} 13. Ne4 {[%clk 0:02:25]}  exd4 {[%clk 0:03:02]} 14. O-O {[%clk 0:02:25]}  Nc6 {[%clk 0:03:02]} 15. Re1 {[%clk 0:02:19]}  h6 {[%clk 0:03:01]} 16. Bf4 {[%clk 0:02:17]}  e5 {[%clk 0:02:59]} 17. Bg3 {[%clk 0:02:16]}  Bf5 {[%clk 0:02:59]} 18. Nbd2 {[%clk 0:02:15]}  Rd8 {[%clk 0:02:47]} 19. Bh4 {[%clk 0:02:13]}  Rd7 {[%clk 0:02:42]} 20. Nf6 {[%clk 0:02:10]}  Re7 {[%clk 0:02:39]} 21. Nde4 {[%clk 0:01:53]}  Be6 {[%clk 0:02:36]} 22. h3 {[%clk 0:01:14]}  g5 {[%clk 0:02:24]} 23. Bg3 {[%clk 0:01:13]}  Nd5 {[%clk 0:02:24]} 24. Nh5 {[%clk 0:01:07]}  f5 {[%clk 0:02:19]} 25. Nxg5 {[%clk 0:00:52]}  hxg5 {[%clk 0:02:16]} 26. Nxg7 {[%clk 0:00:53]}  Kxg7 {[%clk 0:02:03]} 27. Bxe5+ {[%clk 0:00:50]}  Nxe5 {[%clk 0:01:52]} 28. Rxe5 {[%clk 0:00:51]}  dxc3 {[%clk 0:01:14]} 29. Bxd5 {[%clk 0:00:39]}  cxb2 {[%clk 0:01:14]} 30. Rae1 {[%clk 0:00:30]}  Rhe8 {[%clk 0:01:14]} 31. Qg3 {[%clk 0:00:23]}  Kf6 {[%clk 0:01:14]} 32. h4 {[%clk 0:00:17]}  Qd2 {[%clk 0:00:57]} 33. hxg5+ {[%clk 0:00:14]}  Qxg5 {[%clk 0:00:58]} 34. Qc3 {[%clk 0:00:14]}  Kf7 {[%clk 0:00:51]} 35. Rxe6 {[%clk 0:00:14]}  Rxe6 {[%clk 0:00:52]} 36. Qxc7+ {[%clk 0:00:14]}  Kf6 {[%clk 0:00:35]} 37. Qc3+ {[%clk 0:00:12]}  Re5 {[%clk 0:00:35]} 38. Qxb2 {[%clk 0:00:11]}  Qf4 {[%clk 0:00:22]} 39. g3 {[%clk 0:00:11]}  Qg4 {[%clk 0:00:22]} 40. Bxb7 {[%clk 0:00:09]}  Re7 {[%clk 0:00:18]} 41. Bc8 {[%clk 0:00:08]}  Qc4 {[%clk 0:00:17]} 42. Rc1 {[%clk 0:00:07]}  Qd3 {[%clk 0:00:12]} 43. Rc3 {[%clk 0:00:06]}  Qd1+ {[%clk 0:00:12]} 44. Kg2 {[%clk 0:00:06]}  Kg6 {[%clk 0:00:09]} 45. Rc6+ {[%clk 0:00:05]}  Kh5 {[%clk 0:00:09]} 46. Qb4 {[%clk 0:00:03]}  Qd5+ {[%clk 0:00:09]} 47. Kh2 {[%clk 0:00:03]}  Qxc6 {[%clk 0:00:10]} 48. Qh4+ {[%clk 0:00:03]}  Kg6 {[%clk 0:00:10]} 49. Qh8 {[%clk 0:00:01]}  Rh7+ {[%clk 0:00:09]} 50. Qxh7+ {[%clk 0:00:02]}  Kxh7 {[%clk 0:00:10]} 0-1


[Site "https://www.chess.com"]

[Event "Titled Tuesday Blitz January 31 Early 2023"]
[White "Abdilkhair, Abilmansur"]
[Black "Svane, Frederik"]
[WhiteFideId "13716417"]
[BlackFideId "12923044"]
[WhiteElo "2268"]
[BlackElo "2600"]
[Result "0-1"]
[Round "10"]
[TimeControl "180+2"]
[Date "2023.01.31"]
[WhiteClock "0:00:04"]
[BlackClock "0:00:10"]

1. d4 {[%clk 0:03:00]}  Nf6 {[%clk 0:03:00]} 2. c4 {[%clk 0:03:00]}  e6 {[%clk 0:03:00]} 3. g3 {[%clk 0:03:00]}  d5 {[%clk 0:03:00]} 4. Bg2 {[%clk 0:03:00]}  dxc4 {[%clk 0:03:00]} 5. Nf3 {[%clk 0:02:55]}  c6 {[%clk 0:03:00]} 6. O-O {[%clk 0:02:55]}  b5 {[%clk 0:02:57]} 7. a4 {[%clk 0:02:53]}  a6 {[%clk 0:02:54]} 8. Ne5 {[%clk 0:02:47]}  Bb7 {[%clk 0:02:51]} 9. b3 {[%clk 0:02:33]}  cxb3 {[%clk 0:02:43]} 10. Qxb3 {[%clk 0:02:29]}  Qxd4 {[%clk 0:02:32]} 11. Bb2 {[%clk 0:02:12]}  Qb4 {[%clk 0:02:32]} 12. Qc2 {[%clk 0:01:58]}  Qc5 {[%clk 0:02:30]} 13. Qb3 {[%clk 0:01:31]}  Be7 {[%clk 0:02:18]} 14. Rc1 {[%clk 0:01:22]}  Qb6 {[%clk 0:02:16]} 15. Nc4 {[%clk 0:01:12]}  Qd8 {[%clk 0:02:08]} 16. Rd1 {[%clk 0:01:05]}  Nbd7 {[%clk 0:02:02]} 17. Ne5 {[%clk 0:00:47]}  Qc7 {[%clk 0:01:12]} 18. Nxd7 {[%clk 0:00:47]}  Nxd7 {[%clk 0:01:12]} 19. Bxg7 {[%clk 0:00:39]}  Rg8 {[%clk 0:01:12]} 20. Bh6 {[%clk 0:00:36]}  O-O-O {[%clk 0:01:03]} 21. axb5 {[%clk 0:00:30]}  axb5 {[%clk 0:01:03]} 22. Nc3 {[%clk 0:00:24]}  Nc5 {[%clk 0:01:02]} 23. Qc2 {[%clk 0:00:23]}  Rxd1+ {[%clk 0:00:58]} 24. Rxd1 {[%clk 0:00:20]}  Rd8 {[%clk 0:00:59]} 25. Be3 {[%clk 0:00:18]}  Rxd1+ {[%clk 0:00:56]} 26. Qxd1 {[%clk 0:00:19]}  Qe5 {[%clk 0:00:40]} 27. Qc2 {[%clk 0:00:17]}  b4 {[%clk 0:00:38]} 28. Ne4 {[%clk 0:00:12]}  Qa1+ {[%clk 0:00:32]} 29. Bf1 {[%clk 0:00:05]}  b3 {[%clk 0:00:29]} 30. Qc4 {[%clk 0:00:04]}  Nxe4 {[%clk 0:00:28]} 31. Qxb3 {[%clk 0:00:03]}  Qe5 {[%clk 0:00:18]} 32. Qb1 {[%clk 0:00:03]}  c5 {[%clk 0:00:18]} 33. f4 {[%clk 0:00:03]}  Qd5 {[%clk 0:00:13]} 34. Bg2 {[%clk 0:00:04]}  Nc3 {[%clk 0:00:10]} 35. Qc2 {[%clk 0:00:04]}  Qxg2# {[%clk 0:00:10]} 0-1


[Site "https://www.chess.com"]